bitfinex-derivatives/quotes_SOLF0:USTF0_20220101
["timestamp","ask_amount","ask_price","bid_price","bid_amount"]
[1641052558042,4.08351951,173.4,173.36,33.42698424]
[1641052558238,4.08351951,173.4,173.39,1.71583287]
[1641052558739,39.96128738,173.44,173.39,1.71583287]
[1641052558740,12.29649738,173.42,173.39,1.71583287]
[1641052560042,12.29649738,173.42,173.38,4.08351951]
[1641052560242,12.29649738,173.42,173.41,1.71583287]
[1641052560442,9.52420736,173.43,173.41,1.71583287]
[1641052560443,12.29649738,173.44,173.41,1.71583287]
[1641052560844,12.29649738,173.44,173.4,4.08351951]
[1641052562247,12.29649738,173.45,173.4,4.08351951]
[1641052562745,12.29649738,173.45,173.42,1.71583287]
[1641052562946,12.29649738,173.45,173.4,4.08351951]
[1641052563146,12.29649738,173.45,173.4,5.79935238]
[1641052563347,12.29649738,173.44,173.4,4.08351951]
[1641052563547,12.29649738,173.44,173.4,5.79935238]
[1641052563747,12.28538035,173.46,173.41,4.08351951]
[1641052564247,12.28538035,173.46,173.42,1.71583287]
[1641052564447,12.28538035,173.46,173.42,4.08351951]
[1641052564852,12.28538035,173.46,173.42,5.79935238]
[1641052565048,12.28538035,173.46,173.42,4.08351951]
[1641052565248,12.28538035,173.46,173.45,1.71583287]
[1641052566349,39.95017035,173.47,173.45,1.71583287]
[1641052566650,12.28538035,173.47,173.45,1.71583287]
[1641052567049,12.28538035,173.48,173.45,1.71583287]
[1641052567849,12.28538035,173.48,173.46,1.71583287]
[1641052568555,12.28538035,173.49,173.46,1.71583287]
[1641052568955,27.66479,173.51,173.46,1.71583287]
[1641052569856,27.66479,173.51,173.41,27.66479]
[1641052570459,27.66479,173.51,173.46,1.71583287]
[1641052570657,28.94895713,173.51,173.44,1.71583287]
[1641052571358,27.66479,173.51,173.44,1.71583287]
[1641052572358,27.66479,173.51,173.42,38.5029]
[1641052572660,27.66479,173.51,173.45,1.71583287]
[1641052574362,31.71325888,173.51,173.45,1.71583287]
[1641052575364,27.66479,173.51,173.45,1.71583287]
[1641052575567,27.66479,173.51,173.42,38.5029]
[1641052576266,28.94895713,173.51,173.44,1.71583287]
[1641052576567,27.66479,173.51,173.44,1.71583287]
[1641052576767,27.66479,173.48,173.44,1.71583287]
[1641052577771,27.66479,173.48,173.42,38.5029]
[1641052577972,27.66479,173.48,173.4,5.7607005]
[1641052578170,27.66479,173.48,173.37,42.2222]
[1641052578771,27.66479,173.48,173.39,1.71583287]
[1641052578969,1.28416713,173.47,173.39,1.71583287]
[1641052579373,1.28416713,173.46,173.39,1.71583287]
[1641052579576,6.37416713,173.46,173.39,1.71583287]
[1641052579974,5.09,173.46,173.39,1.71583287]
[1641052580175,12.28538035,173.43,173.39,5.79935238]
[1641052580376,12.28538035,173.43,173.4,1.71583287]
[1641052582280,12.28538035,173.43,173.4,5.79935238]
[1641052582479,12.28538035,173.44,173.4,5.79935238]
[1641052582880,12.28538035,173.43,173.4,1.71583287]
[1641052583082,12.28538035,173.43,173.39,4.08351951]
[1641052583683,12.28538035,173.43,173.4,1.71583287]
[1641052583883,39.95017035,173.45,173.41,4.08351951]
[1641052584684,39.95017035,173.45,173.4,1.71583287]
[1641052584685,12.28538035,173.44,173.4,5.79935238]
[1641052584884,12.28538035,173.44,173.4,4.08351951]
[1641052585287,12.28538035,173.44,173.4,5.79935238]
[1641052585486,27.66479,173.45,173.4,5.79935238]
[1641052585687,12.28667627,173.43,173.4,1.71583287]
[1641052586488,9.46171219,173.44,173.4,1.71583287]
[1641052586890,9.46171219,173.44,173.39,4.08351951]
[1641052587189,12.28673221,173.43,173.4,1.71583287]
[1641052588692,12.28673221,173.44,173.4,5.79935238]
[1641052590793,12.28673221,173.44,173.43,1.71583287]
[1641052590997,40.928,173.47,173.43,1.71583287]
[1641052591196,27.66479,173.48,173.46,1.71583287]
[1641052591396,27.66479,173.48,173.44,1.71583287]
[1641052591594,27.66479,173.48,173.41,45.58235238]
[1641052591795,27.66479,173.48,173.46,4.08351951]
[1641052592596,27.66479,173.48,173.44,4.08351951]
[1641052592995,1.28416713,173.47,173.44,4.08351951]
[1641052593396,27.66479,173.48,173.43,5.79935238]
[1641052593600,27.66479,173.48,173.43,4.08351951]
[1641052594097,27.66479,173.48,173.43,5.79935238]
[1641052594397,2.52160979,173.47,173.43,1.71583287]
[1641052594598,2.52160979,173.47,173.42,5.79935238]
[1641052594898,2.52160979,173.47,173.43,4.08351951]
[1641052595897,2.52160979,173.47,173.42,4.08351951]
[1641052598600,2.52160979,173.47,173.43,4.08351951]
[1641052599101,27.66479,173.48,173.44,5.79935238]
[1641052599500,27.66479,173.48,173.44,4.08351951]
[1641052599903,2.41278355,173.47,173.44,4.08351951]
[1641052600402,2.41278355,173.47,173.44,5.79935238]
[1641052600602,27.66479,173.48,173.44,5.79935238]
[1641052601103,2.41272664,173.47,173.44,5.79935238]
[1641052601606,2.41272664,173.47,173.44,4.08351951]
[1641052601807,27.66479,173.48,173.44,4.08351951]
[1641052602008,27.66479,173.48,173.45,1.71583287]
[1641052602408,2.4127462,173.47,173.45,1.71583287]
[1641052602909,27.66479,173.48,173.46,1.71583287]
[1641052603213,27.66479,173.48,173.47,1.71583287]
[1641052604011,27.66479,173.48,173.47,3.39779032]
[1641052609117,27.66479,173.48,173.47,1.68195745]
[1641052610418,27.66479,173.48,173.44,8.89634857]
[1641052610620,27.66479,173.48,173.47,1.71583287]
[1641052611120,27.66479,173.48,173.44,8.89634857]
[1641052611519,27.66479,173.48,173.45,1.71583287]
[1641052611719,27.66479,173.48,173.44,8.89634857]
[1641052612319,27.66479,173.48,173.44,1.68195745]
[1641052612520,27.66479,173.48,173.47,4.09396539]
[1641052613321,30.07691355,173.48,173.46,4.09396539]
[1641052613821,30.07691355,173.48,173.47,1.71583287]
[1641052614023,27.66479,173.51,173.46,4.09396539]
[1641052614221,2.41221123,173.47,173.46,5.77592284]
[1641052614724,4.08249603,173.49,173.45,5.80979826]
[1641052615122,4.08249603,173.49,173.45,4.09396539]
[1641052615323,27.66479,173.51,173.45,4.09396539]
[1641052615726,1.28416713,173.54,173.45,4.09396539]
[1641052615925,4.08253024,173.49,173.45,4.09396539]
[1641052616324,4.08253024,173.49,173.45,5.80979826]
[1641052616525,3.68944387,173.53,173.45,5.80979826]
[1641052616824,2.40527674,173.53,173.46,1.71583287]
[1641052617226,27.66479,173.51,173.46,1.71583287]
[1641052617429,4.0825455,173.49,173.46,1.71583287]
[1641052617625,4.0825455,173.49,173.45,4.09396539]
[1641052618026,2.40527674,173.52,173.48,1.71583287]
[1641052618225,4.08225882,173.51,173.47,4.09396539]
[1641052618627,4.08225882,173.51,173.47,5.80979826]
[1641052618929,2.40527674,173.53,173.47,5.80979826]
[1641052619133,4.08236072,173.5,173.47,1.71583287]
[1641052619729,4.08262103,173.49,173.45,4.09396539]
[1641052620136,4.08262103,173.49,173.48,1.71583287]
[1641052620328,4.08262103,173.49,173.45,4.09396539]
[1641052620528,4.08231348,173.5,173.46,4.09396539]
[1641052620728,4.08231348,173.5,173.47,1.71583287]
[1641052621029,2.40527674,173.54,173.48,1.71583287]
[1641052621232,4.08211066,173.51,173.48,1.71583287]
[1641052621929,2.40527674,173.54,173.49,5.77594702]
[1641052621930,12.24633199,173.53,173.49,5.77594702]
[1641052622630,11.5650427,173.54,173.49,5.77594702]
[1641052622930,11.5650427,173.54,173.52,1.71583287]
[1641052623429,12.28060576,173.53,173.49,5.77594702]
[1641052624329,14.6858825,173.54,173.52,1.71583287]
[1641052624533,14.6858825,173.54,173.5,4.09396539]
[1641052624933,14.6858825,173.54,173.52,1.71583287]
[1641052625332,14.6858825,173.54,173.5,4.09396539]
[1641052625734,27.66479,173.55,173.5,5.80979826]
[1641052626432,14.6908637,173.54,173.5,5.80979826]
[1641052627132,27.66479,173.55,173.5,4.09396539]
[1641052627736,14.69086573,173.54,173.5,4.09396539]
[1641052627933,14.69086573,173.54,173.51,1.71583287]
[1641052628133,14.69086573,173.54,173.5,4.09396539]
[1641052628335,27.66479,173.55,173.5,5.80979826]
[1641052628534,27.66479,173.55,173.5,4.09396539]
[1641052629035,14.69079553,173.54,173.5,4.09396539]
[1641052629635,27.66479,173.55,173.5,4.09396539]
[1641052630436,14.69081492,173.54,173.51,1.71583287]
[1641052630839,14.69081492,173.54,173.5,4.09396539]
[1641052631238,27.66479,173.55,173.5,4.09396539]
[1641052631437,39.94409598,173.55,173.51,4.09396539]
[1641052631637,39.94409598,173.55,173.51,5.80979826]
[1641052632238,2.41109767,173.54,173.51,5.80979826]
[1641052632842,39.94409598,173.55,173.51,5.80979826]
[1641052633540,2.41111004,173.54,173.51,5.80979826]
[1641052634040,39.94409598,173.55,173.51,4.09396539]
[1641052634241,39.94409598,173.55,173.51,5.80979826]
[1641052634843,2.41109099,173.54,173.51,5.80979826]
[1641052635440,39.94409598,173.55,173.51,5.80979826]
[1641052635939,2.4110924,173.54,173.51,5.80979826]
[1641052636639,39.94409598,173.55,173.51,5.80979826]
[1641052637240,2.41111786,173.54,173.51,5.80979826]
[1641052637943,39.94409598,173.55,173.51,5.80979826]
[1641052638441,2.41102071,173.54,173.51,5.80979826]
[1641052638842,2.41102071,173.54,173.51,4.09396539]
[1641052639044,27.66479,173.55,173.51,4.09396539]
[1641052639746,2.4110316,173.54,173.51,4.09396539]
[1641052640447,27.66479,173.55,173.51,4.09396539]
[1641052641047,4.08133156,173.53,173.49,4.09396539]
[1641052641647,4.08133156,173.53,173.5,1.71583287]
[1641052641947,27.66479,173.55,173.5,1.71583287]
[1641052642147,27.66479,173.55,173.49,4.09396539]
[1641052642348,27.66479,173.55,173.5,1.71583287]
[1641052642748,4.08132392,173.53,173.5,1.71583287]
[1641052643150,4.08132392,173.53,173.49,4.09396539]
[1641052643353,27.66479,173.55,173.5,1.71583287]
[1641052644053,4.08131205,173.53,173.5,1.71583287]
[1641052644453,4.08131205,173.53,173.49,4.09396539]
[1641052644655,39.90878469,173.55,173.51,5.77598742]
[1641052645055,39.90878469,173.55,173.51,7.49182029]
[1641052645355,2.41108066,173.54,173.51,4.09396539]
[1641052645957,44.16578469,173.55,173.51,4.09396539]
[1641052646556,2.41107361,173.54,173.51,5.77598742]
[1641052647256,44.16578469,173.55,173.51,5.77598742]
[1641052648061,2.41110663,173.54,173.51,4.09396539]
[1641052648759,44.16578469,173.55,173.51,4.09396539]
[1641052649459,2.41111061,173.54,173.51,4.09396539]
[1641052649762,2.41111061,173.54,173.51,5.80979826]
[1641052649959,2.41111061,173.54,173.51,4.09396539]
[1641052650159,2.41111061,173.54,173.53,1.71583287]
[1641052650360,39.90878469,173.55,173.53,1.71583287]
[1641052650762,12.24399469,173.55,173.52,6.604]
[1641052651164,12.24399469,173.59,173.54,3.3978549]
[1641052651364,12.24399469,173.59,173.54,1.68202203]
[1641052652165,14.68568791,173.6,173.56,4.09195635]
[1641052652369,15.96985504,173.6,173.56,4.09195635]
[1641052652868,1.28416713,173.6,173.56,4.09195635]
[1641052653068,2.40992563,173.59,173.56,4.09195635]
[1641052653970,1.28416713,173.6,173.56,4.09195635]
[1641052654167,1.28416713,173.6,173.55,1.68202203]
[1641052654168,39.94157082,173.59,173.55,5.77397838]
[1641052654868,39.94157082,173.59,173.55,4.09195635]
[1641052655070,2.41007328,173.58,173.56,1.71583287]
[1641052655673,2.41007328,173.58,173.55,4.09195635]
[1641052655870,14.68668748,173.6,173.56,4.09195635]
[1641052656773,14.68668748,173.6,173.56,5.80778922]
[1641052656969,14.68668748,173.6,173.56,4.09195635]
[1641052657370,12.27678082,173.6,173.56,4.09195635]
[1641052657971,12.84851566,173.61,173.56,1.71583287]
[1641052658172,1.28416713,173.6,173.55,4.09195635]
[1641052658372,1.28416713,173.56,173.55,4.09195635]
[1641052658773,1.28416713,173.56,173.54,4.09195635]
[1641052658974,7.80316713,173.56,173.54,4.09195635]
[1641052659374,6.519,173.56,173.54,4.09195635]
[1641052659574,6.519,173.56,173.5,12.24633199]
[1641052659575,2.40990666,173.55,173.52,4.09195635]
[1641052660075,39.94211657,173.56,173.52,4.09195635]
[1641052660477,41.2262837,173.56,173.52,4.09195635]
[1641052661778,41.2262837,173.56,173.51,4.09195635]
[1641052661978,2.41099656,173.55,173.51,4.09195635]
[1641052662479,41.2262837,173.56,173.51,4.09195635]
[1641052662678,12.27732657,173.55,173.51,5.80778922]
[1641052662880,12.27732657,173.55,173.51,4.09195635]
[1641052663080,12.27732657,173.55,173.51,5.80778922]
[1641052663283,2.41103762,173.55,173.51,5.80778922]
[1641052663783,2.41103762,173.55,173.51,4.09195635]
[1641052663989,12.27919226,173.55,173.51,4.09195635]
[1641052664686,2.41104724,173.55,173.51,4.09195635]
[1641052665385,12.27886874,173.55,173.51,4.09195635]
[1641052665787,1.28416713,173.52,173.51,4.09195635]
[1641052666287,15.9740498,173.55,173.51,4.09195635]
[1641052667186,12.27886874,173.53,173.49,5.77398218]
[1641052667686,12.27886874,173.53,173.49,7.48981505]
[1641052667886,4.09326635,173.5,173.49,4.09195635]
[1641052668487,36.53401393,173.54,173.48,1.68202583]
[1641052668686,4.09299609,173.51,173.48,1.68202583]
[1641052668888,4.09299609,173.51,173.5,1.71583287]
[1641052669089,14.69000221,173.55,173.5,1.71583287]
[1641052669289,14.69000221,173.55,173.54,1.71583287]
[1641052669290,12.27898828,173.55,173.54,1.71583287]
[1641052669991,32.79231855,173.59,173.54,1.71583287]
[1641052670291,32.79231855,173.59,173.54,1.68202583]
[1641052670292,12.27665587,173.59,173.54,1.68202583]
[1641052670993,12.27665587,173.59,173.52,36.96422583]
[1641052671592,12.27665587,173.59,173.53,1.68202583]
[1641052672292,11.43050798,173.6,173.55,1.71583287]
[1641052673192,12.27682013,173.59,173.55,1.71583287]
[1641052673393,12.27682013,173.59,173.52,35.2822]
[1641052673792,12.27682013,173.59,173.55,1.71583287]
[1641052673992,12.27682013,173.59,173.53,1.7189046]
[1641052674193,39.94161013,173.59,173.55,1.71583287]
[1641052674495,42.31498165,173.59,173.55,1.71583287]
[1641052675093,2.37337152,173.58,173.53,8.75638959]
[1641052675293,2.37337152,173.58,173.53,5.75638959]
[1641052675494,2.37337152,173.58,173.55,1.71583287]
[1641052675694,12.27682013,173.59,173.55,1.71583287]
[1641052675893,27.66479,173.62,173.55,1.71583287]
[1641052675894,2.37222536,173.61,173.56,12.24633199]
[1641052676494,1.28416713,173.61,173.56,12.24633199]
[1641052676694,27.66479,173.62,173.56,12.24633199]
[1641052677294,2.37243846,173.61,173.56,1.71901002]
[1641052678295,27.66479,173.62,173.55,1.71583287]
[1641052678698,27.66479,173.62,173.54,13.96534201]
[1641052678896,2.37249974,173.61,173.56,1.71901002]
[1641052679096,2.37249974,173.61,173.57,1.71583287]
[1641052679600,27.66479,173.62,173.57,1.71583287]
[1641052680301,2.37246282,173.61,173.58,1.71901002]
[1641052680801,27.66479,173.62,173.58,1.71901002]
[1641052681405,2.3724774,173.61,173.58,1.71901002]
[1641052681901,27.66479,173.62,173.58,1.71901002]
[1641052683201,2.37248259,173.61,173.58,1.71901002]
[1641052683602,12.27488945,173.61,173.56,1.71901002]
[1641052684401,27.66479,173.59,173.56,1.71901002]
[1641052685202,2.37274155,173.58,173.56,1.71901002]
[1641052686005,27.66479,173.59,173.56,1.71901002]
[1641052686205,12.27764714,173.58,173.5,12.24633199]
[1641052686904,12.27764714,173.58,173.51,5.75721811]
[1641052687305,2.37314985,173.58,173.51,18.0035501]
[1641052687604,2.37314985,173.58,173.55,1.71583287]
[1641052687805,2.37314985,173.58,173.51,18.0035501]
[1641052687806,6.732,173.59,173.51,18.0035501]
[1641052688006,6.732,173.59,173.53,12.24633199]
[1641052688204,6.732,173.59,173.55,1.71583287]
[1641052688804,0.18533807,173.59,173.55,1.71583287]
[1641052689205,0.18533807,173.59,173.53,31.9409]
[1641052691305,0.18533807,173.59,173.54,1.71583287]
[1641052691905,0.18533807,173.59,173.51,5.75721811]
[1641052692305,27.85012807,173.59,173.54,1.71583287]
[1641052693206,27.85012807,173.59,173.51,5.75721811]
[1641052693405,0.18533807,173.59,173.51,5.75721811]
[1641052693806,0.18533807,173.59,173.58,1.71583287]
[1641052694409,0.18533807,173.59,173.53,57.24309]
[1641052694911,0.18533807,173.59,173.56,1.71583287]
[1641052695609,0.18533807,173.59,173.57,1.66014648]
[1641052696209,0.18533807,173.59,173.58,1.71583287]
[1641052697211,0.18533807,173.59,173.58,3.37597935]
[1641052697408,2.43118297,173.59,173.58,3.37597935]
[1641052697909,2.43118297,173.61,173.58,3.37597935]
[1641052698411,2.43118297,173.61,173.58,1.71583287]
[1641052699113,2.43118297,173.61,173.59,1.660147]
[1641052699718,2.43118297,173.61,173.58,1.660147]
[1641052700418,2.43118297,173.61,173.55,12.24633199]
[1641052700619,2.43118297,173.61,173.57,1.71583287]
[1641052701019,2.43118297,173.61,173.58,1.660147]
[1641052701719,2.43118297,173.61,173.55,12.24633199]
[1641052703124,2.43118297,173.61,173.57,1.71583287]
[1641052703324,2.43118297,173.61,173.55,12.24633199]
[1641052703524,2.43118297,173.61,173.57,1.71583287]
[1641052703726,2.43118297,173.61,173.56,12.24633199]
[1641052703926,2.43118297,173.61,173.56,13.96216486]
[1641052704125,2.43118297,173.61,173.56,12.24633199]
[1641052704327,2.43118297,173.61,173.6,1.71583287]
[1641052704925,2.43118297,173.61,173.59,1.71583287]
[1641052705126,39.86511919,173.62,173.59,1.71583287]
[1641052705326,27.66479,173.62,173.6,1.660147]
[1641052707627,32.4088,173.65,173.6,1.660147]
[1641052707828,12.20032919,173.68,173.6,1.660147]
[1641052708128,12.20032919,173.68,173.6,5.858147]
[1641052708328,12.20032919,173.68,173.65,1.71583287]
[1641052708527,12.20032919,173.68,173.6,7.198]
[1641052708729,12.20032919,173.68,173.6,4.198]
[1641052708928,12.20032919,173.68,173.64,1.71583287]
[1641052709329,2.42554902,173.68,173.64,1.71583287]
[1641052709730,2.42554902,173.68,173.6,25.31472596]
[1641052709929,2.42554902,173.68,173.6,5.91383287]
[1641052710229,2.42554902,173.68,173.6,4.198]
[1641052710430,2.42554902,173.68,173.6,5.91383287]
[1641052710630,2.42554902,173.68,173.61,3.37334814]
[1641052710929,3.70971615,173.68,173.62,1.71583287]
[1641052711330,2.42554902,173.68,173.63,1.71583287]
[1641052711530,2.42554902,173.68,173.62,1.65751527]
[1641052712031,2.42554902,173.68,173.61,1.71583287]
[1641052712532,2.42554902,173.68,173.62,1.65751527]
[1641052713331,2.42554902,173.68,173.64,1.71583287]
[1641052713732,2.42554902,173.68,173.59,71.62752199]
[1641052714032,2.42554902,173.68,173.64,1.71583287]
[1641052715036,2.42554902,173.68,173.59,76.78252199]
[1641052715534,2.42554902,173.68,173.6,21.04582437]
[1641052715734,2.42554902,173.68,173.6,22.76165724]
[1641052716136,2.42554902,173.68,173.6,1.65753423]
[1641052716538,2.42554902,173.68,173.62,1.71583287]
[1641052716839,2.42554902,173.68,173.6,1.65753423]
[1641052717238,2.42554902,173.68,173.59,43.96273199]
[1641052717446,2.42554902,173.68,173.59,31.7164]
[1641052717841,2.42554902,173.68,173.63,1.71583287]
[1641052718041,12.20032919,173.67,173.63,1.71583287]
[1641052719141,12.20032919,173.67,173.6,19.40033251]
[1641052719742,12.20032919,173.67,173.63,1.71583287]
[1641052721446,12.20032919,173.67,173.6,19.40033251]
[1641052722244,12.20032919,173.67,173.6,21.06062037]
[1641052722845,14.62587821,173.68,173.6,21.06062037]
[1641052724146,12.20032919,173.67,173.6,21.06062037]
[1641052724847,12.20032919,173.65,173.58,12.24633199]
[1641052726251,2.42554902,173.66,173.6,12.24633199]
[1641052727656,12.20032919,173.68,173.6,12.24633199]
[1641052727859,27.66479,173.69,173.59,27.66479]
[1641052728558,27.66479,173.69,173.6,1.66028786]
[1641052729858,31.72775118,173.69,173.6,5.72324904]
[1641052730061,31.72775118,173.69,173.61,33.2715]
[1641052731164,31.72775118,173.69,173.64,1.71583287]
[1641052732063,31.72775118,173.69,173.61,33.2715]
[1641052732466,31.72775118,173.69,173.63,1.71583287]
[1641052732664,31.72775118,173.69,173.61,33.2715]
[1641052733071,31.72775118,173.69,173.6,4.06296118]
[1641052733672,31.72775118,173.69,173.6,5.71245658]
[1641052733870,31.72775118,173.69,173.63,1.71583287]
[1641052734171,31.72775118,173.69,173.64,1.71583287]
[1641052734370,31.72775118,173.69,173.6,5.71245658]
[1641052734570,31.72775118,173.69,173.61,31.4517]
[1641052734871,2.42931909,173.68,173.65,4.06296118]
[1641052736872,14.62964828,173.68,173.64,5.71245658]
[1641052737273,14.62964828,173.68,173.66,1.71583287]
[1641052737477,14.62964828,173.68,173.67,1.71583287]
[1641052737675,2.42931909,173.68,173.67,1.71583287]
[1641052737974,1.73751909,173.68,173.67,1.71583287]
[1641052738976,12.20032919,173.69,173.67,1.71583287]
[1641052739378,27.66479,173.72,173.65,39.91112199]
[1641052739781,27.66479,173.72,173.7,1.71583287]
[1641052739980,27.66479,173.72,173.66,29.9918]
[1641052740383,27.66479,173.72,173.7,1.71583287]
[1641052740682,12.20032919,173.74,173.71,1.71583287]
[1641052741280,12.20032919,173.74,173.7,4.08859237]
[1641052741682,12.20032919,173.74,173.73,1.71583287]
[1641052741883,12.20032919,173.76,173.73,1.71583287]
[1641052742184,12.20032919,173.76,173.72,4.08859237]
[1641052742383,12.20032919,173.76,173.74,1.71583287]
[1641052742584,12.20032919,173.75,173.74,1.71583287]
[1641052745087,12.20032919,173.75,173.71,4.08859237]
[1641052745288,12.20032919,173.76,173.72,4.08859237]
[1641052745587,44.50542919,173.76,173.72,4.08859237]
[1641052746088,12.20032919,173.74,173.7,5.80442524]
[1641052747090,12.20032919,173.74,173.73,1.71583287]
[1641052747489,12.20032919,173.74,173.7,4.08859237]
[1641052747689,12.20032919,173.74,173.7,5.80442524]
[1641052747889,12.20032919,173.74,173.7,4.08859237]
[1641052748691,12.20032919,173.74,173.71,1.71583287]
[1641052749091,12.20032919,173.74,173.7,5.80442524]
[1641052749292,36.247,173.76,173.71,4.08859237]
[1641052749492,12.26498132,173.75,173.71,4.08859237]
[1641052750091,5.525,173.76,173.7,5.80442524]
[1641052750092,12.26498132,173.74,173.7,5.80442524]
[1641052750692,12.26496283,173.75,173.71,4.08859237]
[1641052752092,9.18361451,173.76,173.71,4.08859237]
[1641052752896,12.26487116,173.75,173.71,4.08859237]
[1641052753397,12.26487116,173.76,173.72,4.08859237]
[1641052753598,12.26487116,173.76,173.74,1.71583287]
[1641052753798,12.26487116,173.76,173.72,4.08859237]
[1641052754099,72.14559151,173.77,173.73,4.08859237]
[1641052754298,39.92869151,173.77,173.73,4.08859237]
[1641052754498,39.92869151,173.77,173.74,1.71583287]
[1641052755000,12.26390151,173.75,173.74,1.71583287]
[1641052755499,12.26415179,173.76,173.74,1.71583287]
[1641052756201,27.66479,173.77,173.74,1.71583287]
[1641052756803,12.26416171,173.76,173.74,1.71583287]
[1641052757504,12.26416171,173.76,173.72,4.08859237]
[1641052757703,27.66479,173.77,173.72,4.08859237]
[1641052757905,1.28416713,173.75,173.73,1.71583287]
[1641052758305,13.54894597,173.75,173.73,1.71583287]
[1641052758706,12.26477884,173.75,173.73,1.71583287]
[1641052758907,10.4672562,173.76,173.73,1.71583287]
[1641052759106,12.26533072,173.74,173.73,1.71583287]
[1641052759507,10.4672562,173.76,173.7,34.82589237]
[1641052760108,10.4672562,173.76,173.73,1.71583287]
[1641052760307,12.26503463,173.74,173.73,1.71583287]
[1641052760810,10.4672562,173.76,173.73,1.71583287]
[1641052761310,12.26509493,173.74,173.73,1.71583287]
[1641052762008,9.18308907,173.76,173.73,1.71583287]
[1641052762208,12.26484039,173.75,173.73,1.71583287]
[1641052764312,12.26484039,173.75,173.71,4.08859237]
[1641052764511,1.28416713,173.73,173.71,4.08859237]
[1641052764712,1.28416713,173.72,173.7,4.08859237]
[1641052765013,1.28416713,173.71,173.7,4.08859237]
[1641052765211,1.28416713,173.71,173.67,1.71583287]
[1641052765412,1.28416713,173.7,173.67,5.80497701]
[1641052765715,27.66479,173.68,173.67,5.80497701]
[1641052765912,5.778,173.69,173.67,5.80497701]
[1641052766111,5.778,173.69,173.67,4.08914414]
[1641052766312,5.778,173.69,173.68,1.71583287]
[1641052766712,5.778,173.69,173.63,32.6033]
[1641052766912,5.778,173.69,173.66,1.71583287]
[1641052767513,5.778,173.69,173.64,19.41663519]
[1641052767912,5.778,173.69,173.66,1.71583287]
[1641052768114,27.66479,173.7,173.68,1.71583287]
[1641052768515,27.66479,173.7,173.64,19.41663519]
[1641052768717,27.66479,173.7,173.68,1.71583287]
[1641052769219,27.66479,173.7,173.66,1.71583287]
[1641052769818,32.2879,173.71,173.64,19.41663519]
[1641052770021,32.2879,173.71,173.66,1.71583287]
[1641052771121,44.55533242,173.71,173.66,1.71583287]
[1641052771727,12.26743242,173.7,173.66,1.71583287]
[1641052772221,44.55533242,173.71,173.66,1.71583287]
[1641052772925,44.55533242,173.71,173.63,44.84963199]
[1641052773725,27.66479,173.7,173.68,1.71583287]
[1641052774227,27.66479,173.7,173.63,44.84963199]
[1641052775430,27.66479,173.7,173.67,1.71583287]
[1641052776029,27.66479,173.7,173.63,44.84963199]
[1641052776230,27.66479,173.7,173.67,1.71583287]
[1641052776630,44.55533242,173.71,173.67,1.71583287]
[1641052777032,44.55533242,173.71,173.66,1.71583287]
[1641052777230,44.55533242,173.71,173.63,44.84963199]
[1641052777832,72.22012242,173.71,173.67,1.71583287]
[1641052778231,72.22012242,173.71,173.64,1.62982582]
[1641052778432,2.45922855,173.7,173.68,1.71583287]
[1641052779032,2.45922855,173.7,173.69,1.71583287]
[1641052779633,2.45922855,173.73,173.69,3.34572531]
[1641052780032,2.45922855,173.73,173.71,1.71583287]
[1641052780235,2.45922855,173.73,173.7,3.34572531]
[1641052781033,2.45922855,173.73,173.7,1.71583287]
[1641052781735,2.45922855,173.73,173.68,32.1446]
[1641052782036,2.45922855,173.73,173.71,1.71583287]
[1641052782237,2.45922855,173.73,173.69,1.71583287]
[1641052782735,2.45922855,173.73,173.68,32.1446]
[1641052783035,2.45922855,173.73,173.69,1.71583287]
[1641052783236,2.45922855,173.73,173.7,1.62988864]
[1641052783635,2.45922855,173.73,173.7,3.34572151]
[1641052783838,2.45922855,173.73,173.7,1.71583287]
[1641052784638,2.45922855,173.73,173.68,32.1446]
[1641052784837,2.45922855,173.73,173.7,1.71583287]
[1641052785036,2.45922855,173.73,173.68,32.1446]
[1641052785237,2.45922855,173.73,173.69,1.62913183]
[1641052785737,42.39145097,173.75,173.69,1.62913183]
[1641052786339,2.45922855,173.74,173.69,1.62913183]
[1641052786741,2.45922855,173.74,173.7,1.71583287]
[1641052787439,2.45922855,173.74,173.69,1.62913183]
[1641052787840,2.45922855,173.74,173.73,1.71583287]
[1641052788443,2.45922855,173.74,173.68,44.39093199]
[1641052788843,2.45922855,173.74,173.73,1.71583287]
[1641052789043,2.45922855,173.74,173.68,44.39093199]
[1641052789243,2.45922855,173.74,173.73,1.71583287]
[1641052789847,2.45922855,173.75,173.73,1.71583287]
[1641052790143,2.45922855,173.75,173.71,1.71583287]
[1641052790542,2.45922855,173.75,173.73,1.71583287]
[1641052791142,2.45922855,173.75,173.71,1.71583287]
[1641052791743,14.72666097,173.77,173.72,1.62995659]
[1641052792144,14.72666097,173.77,173.73,1.71583287]
[1641052792843,14.72666097,173.77,173.7,1.62995659]
[1641052793044,14.72666097,173.77,173.69,39.91112199]
[1641052793543,14.72666097,173.77,173.71,1.71583287]
[1641052793745,14.72666097,173.77,173.7,1.62995799]